[Event "FIDE Women World Blitz 2021"]
[Site "Warsaw"]
[Date "2021.12.30"]
[Round "11.31"]
[White "Wikar, Martyna"]
[Black "Padmini, Rout"]
[Result "0-1"]
[ECO "B31"]
[WhiteElo "1899"]
[BlackElo "2353"]
[Annotator "NA"]
[PlyCount "108"]
[EventDate "2021.12.29"]
[EventType "swiss"]
[EventCountry "POL"]
[Tiebreak "Cut1 Buchholz"]
[SourceTitle "playchess.com"]
[Source "ChessBase"]
[SourceQuality "1"]
[TimeControl "180+2"]

1. e4 {[%emt 0:00:02]} c5 {[%emt 0:00:01]} 2. Nf3 {[%emt 0:00:01]} Nc6 {
[%emt 0:00:01]} 3. Bb5 {[%emt 0:00:02]} g6 {[%emt 0:00:02]} 4. O-O {[%emt 0:00:
03]} Bg7 {[%emt 0:00:02]} 5. c3 {[%emt 0:00:03]} Nf6 {[%emt 0:00:04]} 6. Re1 {
[%emt 0:00:02]} O-O {[%emt 0:00:03]} 7. h3 {[%emt 0:00:05]} d5 {[%emt 0:00:15]}
8. e5 {[%emt 0:00:10]} Nd7 {[%emt 0:00:02]} 9. d4 {[%emt 0:00:10]} c4 {[%emt 0:
00:02]} 10. Ba4 {[%emt 0:00:04]} a6 {[%emt 0:00:04]} 11. Bf4 {[%emt 0:00:18]}
b5 {[%emt 0:00:02]} 12. Bc2 {[%emt 0:00:01]} b4 {[%emt 0:00:03]} 13. Qd2 {
[%emt 0:00:13]} a5 {[%emt 0:00:07]} 14. h4 {[%emt 0:00:13]} Re8 {[%emt 0:00:08]
} 15. h5 {[%emt 0:00:04]} Nf8 {[%emt 0:00:01]} 16. Bh6 {[%emt 0:00:07]} Bg4 {
[%emt 0:00:24]} 17. Bxg7 {[%emt 0:00:11]} Kxg7 {[%emt 0:00:01]} 18. h6+ {
[%emt 0:00:02]} Kg8 {[%emt 0:00:01]} 19. Ng5 {[%emt 0:00:12]} f6 {[%emt 0:00:
41]} 20. Qf4 {[%emt 0:00:36]} Bd7 {[%emt 0:00:13]} 21. e6 {[%emt 0:00:08]} Bc8
{[%emt 0:00:13]} 22. Re3 {[%emt 0:00:22]} Qd6 {[%emt 0:00:08]} 23. Qxd6 {
[%emt 0:00:19]} exd6 {[%emt 0:00:01]} 24. Ba4 {[%emt 0:00:10]} Ra6 {[%emt 0:00:
29]} 25. Nf7 {[%emt 0:00:06]} Rxe6 {[%emt 0:00:05]} 26. Rxe6 {[%emt 0:00:02]}
Bxe6 {[%emt 0:00:02]} 27. Nxd6 {[%emt 0:00:02]} Nxd4 {[%emt 0:00:07]} 28. cxd4
{[%emt 0:00:01]} Rxd6 {[%emt 0:00:02]} 29. Nd2 {[%emt 0:00:01]} Bd7 {[%emt 0:
00:04]} 30. Bc2 {[%emt 0:00:05]} a4 {[%emt 0:00:12]} 31. Re1 {[%emt 0:00:01]}
b3 {[%emt 0:00:02]} 32. axb3 {[%emt 0:00:02]} axb3 {[%emt 0:00:02]} 33. Bb1 {
[%emt 0:00:02]} Kf7 {[%emt 0:00:01]} 34. Nf3 {[%emt 0:00:02]} Re6 {[%emt 0:00:
02]} 35. Re3 {[%emt 0:00:04]} Ra6 {[%emt 0:00:04]} 36. Kf1 {[%emt 0:00:02]} Ra1
{[%emt 0:00:01]} 37. Re1 {[%emt 0:00:01]} Kg8 {[%emt 0:00:04]} 38. Ke2 {
[%emt 0:00:01]} Ne6 {[%emt 0:00:01]} 39. Kd2 {[%emt 0:00:01]} Ra8 {[%emt 0:00:
06]} 40. Kc3 {[%emt 0:00:02]} Kf7 {[%emt 0:00:02]} 41. Re3 {[%emt 0:00:01]} Nf4
{[%emt 0:00:04]} 42. g3 {[%emt 0:00:01]} Ne6 {[%emt 0:00:01]} 43. Ne1 {[%emt 0:
00:03]} Nc7 {[%emt 0:00:02]} 44. Nf3 {[%emt 0:00:02]} Ra4 {[%emt 0:00:01]} 45.
Re1 {[%emt 0:00:02]} Nb5+ {[%emt 0:00:01]} 46. Kd2 {[%emt 0:00:01]} Bg4 {
[%emt 0:00:02]} 47. Re3 {[%emt 0:00:04]} Bxf3 {[%emt 0:00:02]} 48. Rxf3 {
[%emt 0:00:01]} Nxd4 {[%emt 0:00:01]} 49. Rf4 {[%emt 0:00:01]} Ne6 {[%emt 0:00:
04]} 50. Rf3 {[%emt 0:00:03]} Ra1 {[%emt 0:00:03]} 51. Kc1 {[%emt 0:00:01]} d4
{[%emt 0:00:01]} 52. g4 {[%emt 0:00:04]} Nc5 {[%emt 0:00:03]} 53. g5 {[%emt 0:
00:03]} f5 {[%emt 0:00:01]} 54. Rf4 {[%emt 0:00:01]} Nd3+ {[%emt 0:00:01]} 0-1

[Event "FIDE Women World Blitz 2021"]
[Site "Warsaw"]
[Date "2021.12.30"]
[Round "11.32"]
[White "Badelka, Olga"]
[Black "Zawadzka, Jolanta"]
[Result "0-1"]
[ECO "D31"]
[WhiteElo "2188"]
[BlackElo "2429"]
[Annotator "ChessBase"]
[PlyCount "114"]
[EventDate "2021.12.29"]
[EventType "swiss"]
[EventCountry "POL"]
[Tiebreak "Cut1 Buchholz"]
[SourceTitle "playchess.com"]
[Source "ChessBase"]
[SourceQuality "1"]
[TimeControl "180+2"]

1. c4 {[%emt 0:00:01]} e6 {[%emt 0:00:01]} 2. Nc3 {[%emt 0:00:01]} d5 {[%emt 0:
00:01]} 3. d4 {[%emt 0:00:01]} a6 {[%emt 0:00:00]} 4. cxd5 {[%emt 0:00:02]}
exd5 {[%emt 0:00:01]} 5. Qb3 {[%emt 0:00:02]} c5 {[%emt 0:00:04]} 6. Qxd5 {
[%emt 0:00:09]} cxd4 {[%emt 0:00:03]} 7. Qxd8+ {[%emt 0:00:01]} Kxd8 {[%emt 0:
00:01]} 8. Ne4 {[%emt 0:00:01]} Bf5 {[%emt 0:00:11]} 9. Ng3 {[%emt 0:00:02]}
Bg6 {[%emt 0:00:02]} 10. Nf3 {[%emt 0:00:10]} Nc6 {[%emt 0:00:04]} 11. a3 {
[%emt 0:00:08]} Be7 {[%emt 0:00:25]} 12. h4 {[%emt 0:00:02]} h6 {[%emt 0:00:11]
} 13. h5 {[%emt 0:00:00]} Bh7 {[%emt 0:00:01]} 14. e3 {[%emt 0:00:01]} dxe3 {
[%emt 0:00:11]} 15. Bxe3 {[%emt 0:00:01]} Kc7 {[%emt 0:00:14]} 16. O-O-O {
[%emt 0:00:08]} Nf6 {[%emt 0:00:05]} 17. Bd3 {[%emt 0:00:02]} Bxd3 {[%emt 0:00:
18]} 18. Rxd3 {[%emt 0:00:00]} Rhd8 {[%emt 0:00:02]} 19. Bf4+ {[%emt 0:00:14]}
Kb6 {[%emt 0:00:04]} 20. Rb3+ {[%emt 0:00:06]} Ka7 {[%emt 0:00:15]} 21. Be3+ {
[%emt 0:00:01]} Kb8 {[%emt 0:00:01]} 22. Nf5 {[%emt 0:00:02]} Bf8 {[%emt 0:00:
02]} 23. N3d4 {[%emt 0:00:10]} Nxd4 {[%emt 0:00:08]} 24. Nxd4 {[%emt 0:00:14]}
Rc8+ {[%emt 0:00:15]} 25. Kb1 {[%emt 0:00:01]} Nd5 {[%emt 0:00:01]} 26. Rd1 {
[%emt 0:00:10]} Nxe3 {[%emt 0:00:05]} 27. fxe3 {[%emt 0:00:07]} Ka7 {[%emt 0:
00:03]} 28. Nf5 {[%emt 0:00:04]} Rd8 {[%emt 0:00:05]} 29. Rbd3 {[%emt 0:00:00]}
Rxd3 {[%emt 0:00:17]} 30. Rxd3 {[%emt 0:00:01]} g6 {[%emt 0:00:06]} 31. Ng3 {
[%emt 0:00:01]} Re8 {[%emt 0:00:02]} 32. Kc2 {[%emt 0:00:07]} Bc5 {[%emt 0:00:
02]} 33. Kd2 {[%emt 0:00:04]} Re5 {[%emt 0:00:02]} 34. e4 {[%emt 0:00:23]} Be7
{[%emt 0:00:08]} 35. Rd5 {[%emt 0:00:09]} Rxd5+ {[%emt 0:00:12]} 36. exd5 {
[%emt 0:00:01]} Bd6 {[%emt 0:00:01]} 37. Ne4 {[%emt 0:00:05]} Be5 {[%emt 0:00:
00]} 38. b4 {[%emt 0:00:09]} gxh5 {[%emt 0:00:07]} 39. Kd3 {[%emt 0:00:00]} Kb6
{[%emt 0:00:04]} 40. Nc5 {[%emt 0:00:01]} Bf4 {[%emt 0:00:04]} 41. Ne4 {
[%emt 0:00:43]} a5 {[%emt 0:00:09]} 42. bxa5+ {[%emt 0:00:14]} Kxa5 {[%emt 0:
00:02]} 43. Kc4 {[%emt 0:00:02]} Kb6 {[%emt 0:00:03]} 44. a4 {[%emt 0:00:08]}
Kc7 {[%emt 0:00:02]} 45. Kc5 {[%emt 0:00:02]} Be3+ {[%emt 0:00:01]} 46. Kb5 {
[%emt 0:00:02]} f5 {[%emt 0:00:03]} 47. Nf6 {[%emt 0:00:12]} Kd6 {[%emt 0:00:
06]} 48. Kc4 {[%emt 0:00:02]} h4 {[%emt 0:00:02]} 49. Ne8+ {[%emt 0:00:02]} Ke7
{[%emt 0:00:02]} 50. Ng7 {[%emt 0:00:02]} Kf6 {[%emt 0:00:02]} 51. Ne6 {
[%emt 0:00:03]} f4 {[%emt 0:00:02]} 52. Kd3 {[%emt 0:00:03]} Ke5 {[%emt 0:00:
03]} 53. Nc7 {[%emt 0:00:01]} Bb6 {[%emt 0:00:02]} 54. Ne6 {[%emt 0:00:04]} f3
{[%emt 0:00:04]} 55. gxf3 {[%emt 0:00:00]} h3 {[%emt 0:00:00]} 56. f4+ {
[%emt 0:00:04]} Kf5 {[%emt 0:00:05]} 57. Ng7+ {[%emt 0:00:06]} Kg6 {[%emt 0:00:
01]} 0-1

[Event "FIDE Women World Blitz 2021"]
[Site "Warsaw"]
[Date "2021.12.30"]
[Round "11.33"]
[White "Rakhmangulova, Anastasiya"]
[Black "Serikbay, Assel"]
[Result "0-1"]
[ECO "B45"]
[WhiteElo "2174"]
[BlackElo "2237"]
[Annotator "NA"]
[PlyCount "75"]
[EventDate "2021.12.29"]
[EventType "swiss"]
[EventCountry "POL"]
[Tiebreak "Cut1 Buchholz"]
[SourceTitle "playchess.com"]
[Source "ChessBase"]
[SourceQuality "1"]
[TimeControl "180+2"]

1. e4 {[%emt 0:00:01]} c5 {[%emt 0:00:01]} 2. Nf3 {[%emt 0:00:01]} Nc6 {
[%emt 0:00:01]} 3. d4 {[%emt 0:00:01]} cxd4 {[%emt 0:00:01]} 4. Nxd4 {[%emt 0:
00:00]} Nf6 {[%emt 0:00:03]} 5. Nc3 {[%emt 0:00:01]} e6 {[%emt 0:00:01]} 6.
Ndb5 {[%emt 0:00:06]} Bb4 {[%emt 0:00:01]} 7. a3 {[%emt 0:00:04]} Bxc3+ {
[%emt 0:00:01]} 8. Nxc3 {[%emt 0:00:01]} d5 {[%emt 0:00:01]} 9. exd5 {[%emt 0:
00:14]} exd5 {[%emt 0:00:01]} 10. Bd3 {[%emt 0:00:02]} O-O {[%emt 0:00:01]} 11.
O-O {[%emt 0:00:02]} Bg4 {[%emt 0:00:01]} 12. Ne2 {[%emt 0:00:15]} Ne5 {
[%emt 0:00:21]} 13. f3 {[%emt 0:00:33]} Bh5 {[%emt 0:00:03]} 14. Be3 {[%emt 0:
00:04]} Rc8 {[%emt 0:00:50]} 15. Nf4 {[%emt 0:00:06]} Bg6 {[%emt 0:00:30]} 16.
Bxg6 {[%emt 0:00:16]} hxg6 {[%emt 0:00:02]} 17. Re1 {[%emt 0:00:03]} Qd6 {
[%emt 0:00:49]} 18. Nd3 {[%emt 0:00:32]} Nc4 {[%emt 0:00:11]} 19. Bd4 {[%emt 0:
00:01]} Nh5 {[%emt 0:00:07]} 20. b3 {[%emt 0:00:05]} Nxa3 {[%emt 0:00:14]} 21.
Be5 {[%emt 0:00:12]} Qb6+ {[%emt 0:00:00]} 22. Kh1 {[%emt 0:00:22]} Nxc2 {
[%emt 0:00:02]} 23. Rb1 {[%emt 0:00:21]} Nxe1 {[%emt 0:00:02]} 24. Qxe1 {
[%emt 0:00:01]} Rfe8 {[%emt 0:00:01]} 25. Qd2 {[%emt 0:00:05]} Qc6 {[%emt 0:00:
07]} 26. Nb4 {[%emt 0:00:06]} Qb5 {[%emt 0:00:02]} 27. Ba1 {[%emt 0:00:08]} Qe2
{[%emt 0:00:05]} 28. Qd4 {[%emt 0:00:03]} Qe1+ {[%emt 0:00:03]} 29. Qg1 {
[%emt 0:00:03]} Qxg1+ {[%emt 0:00:02]} 30. Kxg1 {[%emt 0:00:01]} Nf4 {[%emt 0:
00:02]} 31. g3 {[%emt 0:00:04]} Ne2+ {[%emt 0:00:02]} 32. Kf2 {[%emt 0:00:00]}
a5 {[%emt 0:00:01]} 33. Nxd5 {[%emt 0:00:03]} Rc2 {[%emt 0:00:01]} 34. Kf1 {
[%emt 0:00:07]} Rd2 {[%emt 0:00:05]} 35. Nb6 {[%emt 0:00:04]} Nd4 {[%emt 0:00:
03]} 36. Nc4 {[%emt 0:00:02]} Rd3 {[%emt 0:00:02]} 37. Rc1 {[%emt 0:00:03]}
Nxf3 {[%emt 0:00:03]} 38. Nxa5 {[%emt 0:00:01]} 0-1

[Event "FIDE Women World Blitz 2021"]
[Site "Warsaw"]
[Date "2021.12.30"]
[Round "11.34"]
[White "Paramzina, Anastasya"]
[Black "Semenova, Elena"]
[Result "0-1"]
[ECO "C42"]
[WhiteElo "2260"]
[BlackElo "2233"]
[Annotator "NA"]
[PlyCount "140"]
[EventDate "2021.12.29"]
[EventType "swiss"]
[EventCountry "POL"]
[Tiebreak "Cut1 Buchholz"]
[SourceTitle "playchess.com"]
[Source "ChessBase"]
[SourceQuality "1"]
[TimeControl "180+2"]

1. e4 {[%emt 0:00:00]} e5 {[%emt 0:00:00]} 2. Nf3 {[%emt 0:00:01]} Nf6 {
[%emt 0:00:01]} 3. Nxe5 {[%emt 0:00:08]} d6 {[%emt 0:00:00]} 4. Nd3 {[%emt 0:
00:05]} Nxe4 {[%emt 0:00:02]} 5. Qe2 {[%emt 0:00:02]} Qe7 {[%emt 0:00:01]} 6.
Nf4 {[%emt 0:00:06]} c6 {[%emt 0:00:01]} 7. d3 {[%emt 0:00:06]} Nf6 {[%emt 0:
00:03]} 8. Qxe7+ {[%emt 0:00:07]} Bxe7 {[%emt 0:00:02]} 9. d4 {[%emt 0:00:26]}
Bf5 {[%emt 0:00:08]} 10. c3 {[%emt 0:00:03]} O-O {[%emt 0:00:03]} 11. Be2 {
[%emt 0:00:07]} Re8 {[%emt 0:00:08]} 12. Nd2 {[%emt 0:00:08]} Bf8 {[%emt 0:00:
04]} 13. Nf1 {[%emt 0:00:28]} g5 {[%emt 0:00:14]} 14. Nh3 {[%emt 0:00:03]} h6 {
[%emt 0:00:06]} 15. Ne3 {[%emt 0:00:06]} Bg6 {[%emt 0:00:12]} 16. Ng1 {[%emt 0:
00:03]} Nbd7 {[%emt 0:00:03]} 17. h4 {[%emt 0:00:01]} Nb6 {[%emt 0:00:10]} 18.
hxg5 {[%emt 0:00:05]} hxg5 {[%emt 0:00:01]} 19. Bd2 {[%emt 0:00:02]} Ne4 {
[%emt 0:00:18]} 20. Nh3 {[%emt 0:00:14]} f6 {[%emt 0:00:06]} 21. O-O-O {
[%emt 0:00:05]} d5 {[%emt 0:00:14]} 22. Be1 {[%emt 0:00:03]} Bd6 {[%emt 0:00:
04]} 23. Bg4 {[%emt 0:00:20]} Nc4 {[%emt 0:00:16]} 24. Nxc4 {[%emt 0:00:03]}
dxc4 {[%emt 0:00:01]} 25. g3 {[%emt 0:00:07]} Kg7 {[%emt 0:00:07]} 26. Ng1 {
[%emt 0:00:02]} a5 {[%emt 0:00:13]} 27. d5 {[%emt 0:00:04]} Nc5 {[%emt 0:00:38]
} 28. Be2 {[%emt 0:00:15]} Bd3 {[%emt 0:00:10]} 29. dxc6 {[%emt 0:00:19]} bxc6
{[%emt 0:00:05]} 30. Bf3 {[%emt 0:00:04]} Rac8 {[%emt 0:00:11]} 31. Bd2 {
[%emt 0:00:01]} a4 {[%emt 0:00:01]} 32. Be3 {[%emt 0:00:02]} a3 {[%emt 0:00:03]
} 33. bxa3 {[%emt 0:00:01]} Na4 {[%emt 0:00:03]} 34. Ne2 {[%emt 0:00:05]} Bxa3+
{[%emt 0:00:01]} 35. Kd2 {[%emt 0:00:01]} Rcd8 {[%emt 0:00:02]} 36. Ke1 {
[%emt 0:00:05]} Nb2 {[%emt 0:00:06]} 37. Rd2 {[%emt 0:00:02]} Bxe2 {[%emt 0:00:
04]} 38. Bxe2 {[%emt 0:00:01]} Nd3+ {[%emt 0:00:02]} 39. Kf1 {[%emt 0:00:02]}
Bc1 {[%emt 0:00:03]} 40. Rd1 {[%emt 0:00:02]} Bxe3 {[%emt 0:00:01]} 41. fxe3 {
[%emt 0:00:01]} Rxe3 {[%emt 0:00:02]} 42. Rb1 {[%emt 0:00:06]} Rde8 {[%emt 0:
00:00]} 43. Rb7+ {[%emt 0:00:02]} R8e7 {[%emt 0:00:01]} 44. Rxe7+ {[%emt 0:00:
02]} Rxe7 {[%emt 0:00:01]} 45. g4 {[%emt 0:00:07]} Ra7 {[%emt 0:00:01]} 46.
Bxd3 {[%emt 0:00:02]} cxd3 {[%emt 0:00:00]} 47. Rh3 {[%emt 0:00:02]} Rxa2 {
[%emt 0:00:04]} 48. Rxd3 {[%emt 0:00:01]} Rc2 {[%emt 0:00:01]} 49. Ke1 {
[%emt 0:00:03]} Kf7 {[%emt 0:00:02]} 50. Kd1 {[%emt 0:00:01]} Rg2 {[%emt 0:00:
01]} 51. Rd4 {[%emt 0:00:02]} Ke6 {[%emt 0:00:01]} 52. Re4+ {[%emt 0:00:01]}
Kd5 {[%emt 0:00:01]} 53. Rd4+ {[%emt 0:00:02]} Ke5 {[%emt 0:00:00]} 54. Rc4 {
[%emt 0:00:00]} Kd5 {[%emt 0:00:02]} 55. Rd4+ {[%emt 0:00:01]} Ke6 {[%emt 0:00:
02]} 56. Rc4 {[%emt 0:00:01]} c5 {[%emt 0:00:01]} 57. Ke1 {[%emt 0:00:03]} Kd5
{[%emt 0:00:02]} 58. Ra4 {[%emt 0:00:01]} c4 {[%emt 0:00:02]} 59. Ra5+ {
[%emt 0:00:03]} Ke6 {[%emt 0:00:02]} 60. Ra6+ {[%emt 0:00:02]} Ke5 {[%emt 0:00:
01]} 61. Ra5+ {[%emt 0:00:01]} Ke4 {[%emt 0:00:01]} 62. Ra6 {[%emt 0:00:03]}
Ke3 {[%emt 0:00:02]} 63. Re6+ {[%emt 0:00:01]} Kd3 {[%emt 0:00:01]} 64. Rxf6 {
[%emt 0:00:01]} Kxc3 {[%emt 0:00:04]} 65. Kd1 {[%emt 0:00:04]} Rxg4 {[%emt 0:
00:01]} 66. Rf3+ {[%emt 0:00:02]} Kd4 {[%emt 0:00:01]} 67. Rf7 {[%emt 0:00:03]}
Rg2 {[%emt 0:00:01]} 68. Rd7+ {[%emt 0:00:02]} Kc3 {[%emt 0:00:02]} 69. Rc7 {
[%emt 0:00:02]} g4 {[%emt 0:00:01]} 70. Rc8 {[%emt 0:00:02]} g3 {[%emt 0:00:01]
} 0-1

[Event "FIDE Women World Blitz 2021"]
[Site "Warsaw"]
[Date "2021.12.30"]
[Round "11.35"]
[White "Loskutova, Viktoriya"]
[Black "Maisuradze, Nino"]
[Result "1-0"]
[ECO "B32"]
[WhiteElo "2195"]
[BlackElo "2175"]
[Annotator "NA"]
[PlyCount "134"]
[EventDate "2021.12.29"]
[EventType "swiss"]
[EventCountry "POL"]
[Tiebreak "Cut1 Buchholz"]
[SourceTitle "playchess.com"]
[Source "ChessBase"]
[SourceQuality "1"]
[TimeControl "180+2"]

1. e4 {[%emt 0:00:01]} c5 {[%emt 0:00:00]} 2. Nf3 {[%emt 0:00:01]} Nc6 {
[%emt 0:00:00]} 3. d4 {[%emt 0:00:01]} cxd4 {[%emt 0:00:01]} 4. Nxd4 {[%emt 0:
00:01]} e5 {[%emt 0:00:00]} 5. Nb5 {[%emt 0:00:01]} d6 {[%emt 0:00:01]} 6. c4 {
[%emt 0:00:03]} Be7 {[%emt 0:00:03]} 7. N1c3 {[%emt 0:00:03]} a6 {[%emt 0:00:
00]} 8. Na3 {[%emt 0:00:01]} f5 {[%emt 0:00:05]} 9. exf5 {[%emt 0:00:08]} Bxf5
{[%emt 0:00:01]} 10. Bd3 {[%emt 0:00:13]} Be6 {[%emt 0:00:02]} 11. O-O {
[%emt 0:00:04]} Nf6 {[%emt 0:00:00]} 12. Nc2 {[%emt 0:00:06]} O-O {[%emt 0:00:
01]} 13. Ne3 {[%emt 0:00:07]} Nd4 {[%emt 0:00:07]} 14. b3 {[%emt 0:00:05]} Rc8
{[%emt 0:00:02]} 15. Bb2 {[%emt 0:00:04]} Qe8 {[%emt 0:00:26]} 16. Ne4 {
[%emt 0:00:53]} Nh5 {[%emt 0:00:14]} 17. Nd5 {[%emt 0:00:40]} Bxd5 {[%emt 0:00:
29]} 18. cxd5 {[%emt 0:00:01]} Nf5 {[%emt 0:00:51]} 19. Qg4 {[%emt 0:00:18]}
Nf4 {[%emt 0:00:09]} 20. Rad1 {[%emt 0:00:27]} Nh6 {[%emt 0:00:07]} 21. Qg3 {
[%emt 0:00:08]} Rc2 {[%emt 0:00:06]} 22. Bc1 {[%emt 0:00:04]} Rxa2 {[%emt 0:00:
03]} 23. Ng5 {[%emt 0:00:06]} Bxg5 {[%emt 0:00:11]} 24. Qxg5 {[%emt 0:00:02]}
Qf7 {[%emt 0:00:12]} 25. Be3 {[%emt 0:00:05]} Nxd3 {[%emt 0:00:09]} 26. Rxd3 {
[%emt 0:00:01]} Rc2 {[%emt 0:00:04]} 27. Qg3 {[%emt 0:00:04]} Nf5 {[%emt 0:00:
01]} 28. Qh3 {[%emt 0:00:01]} Nxe3 {[%emt 0:00:13]} 29. Qxe3 {[%emt 0:00:02]}
Qf4 {[%emt 0:00:05]} 30. Qb6 {[%emt 0:00:03]} h6 {[%emt 0:00:05]} 31. Rf3 {
[%emt 0:00:01]} Qd4 {[%emt 0:00:10]} 32. Rxf8+ {[%emt 0:00:01]} Kxf8 {[%emt 0:
00:00]} 33. Qxd6+ {[%emt 0:00:01]} Kg8 {[%emt 0:00:02]} 34. Qe6+ {[%emt 0:00:
02]} Kh8 {[%emt 0:00:01]} 35. d6 {[%emt 0:00:01]} Rd2 {[%emt 0:00:01]} 36. Qc8+
{[%emt 0:00:02]} Kh7 {[%emt 0:00:02]} 37. Qf5+ {[%emt 0:00:01]} Kg8 {[%emt 0:
00:03]} 38. Qc8+ {[%emt 0:00:02]} Kf7 {[%emt 0:00:00]} 39. Qxb7+ {[%emt 0:00:
02]} Kg6 {[%emt 0:00:05]} 40. Qxa6 {[%emt 0:00:01]} e4 {[%emt 0:00:03]} 41. d7+
{[%emt 0:00:02]} Kh7 {[%emt 0:00:03]} 42. Qb5 {[%emt 0:00:02]} Qxd7 {[%emt 0:
00:05]} 43. Qxd7 {[%emt 0:00:02]} Rxd7 {[%emt 0:00:00]} 44. Rb1 {[%emt 0:00:01]
} Kg6 {[%emt 0:00:01]} 45. b4 {[%emt 0:00:00]} Kf5 {[%emt 0:00:01]} 46. Kf1 {
[%emt 0:00:01]} Ke5 {[%emt 0:00:05]} 47. Ke2 {[%emt 0:00:03]} Rb7 {[%emt 0:00:
02]} 48. Ke3 {[%emt 0:00:02]} Ra7 {[%emt 0:00:02]} 49. Rb3 {[%emt 0:00:02]} g5
{[%emt 0:00:02]} 50. b5 {[%emt 0:00:01]} Kd5 {[%emt 0:00:01]} 51. b6 {[%emt 0:
00:05]} Rb7 {[%emt 0:00:01]} 52. Rb2 {[%emt 0:00:04]} h5 {[%emt 0:00:04]} 53.
Rb5+ {[%emt 0:00:01]} Ke6 {[%emt 0:00:02]} 54. Rxg5 {[%emt 0:00:02]} Kf6 {
[%emt 0:00:02]} 55. Rxh5 {[%emt 0:00:01]} Kg6 {[%emt 0:00:00]} 56. Rb5 {
[%emt 0:00:01]} Kf6 {[%emt 0:00:02]} 57. Kxe4 {[%emt 0:00:01]} Ke6 {[%emt 0:00:
03]} 58. f4 {[%emt 0:00:02]} Kf6 {[%emt 0:00:00]} 59. f5 {[%emt 0:00:01]} Kg5 {
[%emt 0:00:01]} 60. Ke5 {[%emt 0:00:03]} Kg4 {[%emt 0:00:03]} 61. f6 {[%emt 0:
00:02]} Kg5 {[%emt 0:00:03]} 62. Ke6+ {[%emt 0:00:02]} Kg6 {[%emt 0:00:01]} 63.
h4 {[%emt 0:00:02]} Kh6 {[%emt 0:00:04]} 64. g4 {[%emt 0:00:01]} Kg6 {[%emt 0:
00:01]} 65. h5+ {[%emt 0:00:02]} Kh6 {[%emt 0:00:01]} 66. f7 {[%emt 0:00:00]}
Kg7 {[%emt 0:00:00]} 67. g5 {[%emt 0:00:09]} Kh7 {[%emt 0:00:11]} 1-0

[Event "FIDE Women World Blitz 2021"]
[Site "Warsaw"]
[Date "2021.12.30"]
[Round "11.36"]
[White "Sliwicka, Alicja"]
[Black "Smirnova, Ekaterina"]
[Result "0-1"]
[ECO "C02"]
[WhiteElo "2303"]
[BlackElo "2196"]
[Annotator "NA"]
[PlyCount "104"]
[EventDate "2021.12.29"]
[EventType "swiss"]
[EventCountry "POL"]
[Tiebreak "Cut1 Buchholz"]
[SourceTitle "playchess.com"]
[Source "ChessBase"]
[SourceQuality "1"]
[TimeControl "180+2"]

1. e4 {[%emt 0:00:01]} e6 {[%emt 0:00:00]} 2. d4 {[%emt 0:00:01]} d5 {[%emt 0:
00:01]} 3. e5 {[%emt 0:00:01]} c5 {[%emt 0:00:00]} 4. c3 {[%emt 0:00:01]} Bd7 {
[%emt 0:00:01]} 5. Nf3 {[%emt 0:00:02]} Nc6 {[%emt 0:00:01]} 6. a3 {[%emt 0:00:
07]} c4 {[%emt 0:00:01]} 7. Be2 {[%emt 0:00:03]} Na5 {[%emt 0:00:02]} 8. Nbd2 {
[%emt 0:00:16]} Bc6 {[%emt 0:00:01]} 9. O-O {[%emt 0:00:03]} Qd7 {[%emt 0:00:
01]} 10. a4 {[%emt 0:00:16]} Ne7 {[%emt 0:00:09]} 11. Qc2 {[%emt 0:00:06]} Nc8
{[%emt 0:00:05]} 12. Bd1 {[%emt 0:00:36]} Nb6 {[%emt 0:00:10]} 13. Ne1 {
[%emt 0:00:26]} Be7 {[%emt 0:00:26]} 14. f4 {[%emt 0:00:01]} g6 {[%emt 0:00:01]
} 15. Nef3 {[%emt 0:00:09]} O-O-O {[%emt 0:00:19]} 16. b4 {[%emt 0:00:18]} cxb3
{[%emt 0:00:03]} 17. Nxb3 {[%emt 0:00:02]} Bxa4 {[%emt 0:00:24]} 18. Rxa4 {
[%emt 0:00:23]} Qxa4 {[%emt 0:00:05]} 19. Nxa5 {[%emt 0:00:02]} Qxa5 {[%emt 0:
00:05]} 20. Be2 {[%emt 0:00:01]} Kb8 {[%emt 0:00:15]} 21. Bb2 {[%emt 0:00:02]}
Nc4 {[%emt 0:00:08]} 22. Ra1 {[%emt 0:00:05]} Qb6 {[%emt 0:00:05]} 23. Bc1 {
[%emt 0:00:02]} Rc8 {[%emt 0:00:06]} 24. Nd2 {[%emt 0:00:05]} Nxd2 {[%emt 0:00:
12]} 25. Qxd2 {[%emt 0:00:02]} Rc7 {[%emt 0:00:13]} 26. Bb2 {[%emt 0:00:10]}
Rhc8 {[%emt 0:00:04]} 27. Rc1 {[%emt 0:00:03]} Qb3 {[%emt 0:00:08]} 28. Bd1 {
[%emt 0:00:03]} Qb5 {[%emt 0:00:10]} 29. Ra1 {[%emt 0:00:05]} Rc6 {[%emt 0:00:
11]} 30. Ba4 {[%emt 0:00:02]} Qc4 {[%emt 0:00:11]} 31. Bxc6 {[%emt 0:00:03]}
Rxc6 {[%emt 0:00:00]} 32. g3 {[%emt 0:00:06]} h5 {[%emt 0:00:02]} 33. Kf2 {
[%emt 0:00:04]} Ra6 {[%emt 0:00:01]} 34. Rxa6 Qxa6 {[%emt 0:00:01]} 35. Bc1 {
[%emt 0:00:06]} Qc4 {[%emt 0:00:03]} 36. Qc2 {[%emt 0:00:05]} a6 {[%emt 0:00:
02]} 37. Bd2 {[%emt 0:00:07]} Bd8 {[%emt 0:00:01]} 38. Qb2 {[%emt 0:00:05]} Ka7
{[%emt 0:00:05]} 39. h3 {[%emt 0:00:02]} Bb6 {[%emt 0:00:03]} 40. Qa1 {[%emt 0:
00:06]} Qd3 {[%emt 0:00:05]} 41. Qb2 {[%emt 0:00:01]} Qe4 {[%emt 0:00:04]} 42.
Be3 {[%emt 0:00:02]} Qh1 {[%emt 0:00:03]} 43. Qb4 {[%emt 0:00:02]} Qh2+ {
[%emt 0:00:03]} 44. Kf3 {[%emt 0:00:03]} Qxh3 {[%emt 0:00:03]} 45. Qe7 {
[%emt 0:00:01]} Qf1+ {[%emt 0:00:02]} 46. Bf2 {[%emt 0:00:02]} Qd3+ {[%emt 0:
00:06]} 47. Kg2 {[%emt 0:00:00]} Qxc3 {[%emt 0:00:02]} 48. Qxf7 {[%emt 0:00:02]
} Bxd4 {[%emt 0:00:01]} 49. Bxd4+ {[%emt 0:00:02]} Qxd4 {[%emt 0:00:01]} 50.
Qxe6 {[%emt 0:00:01]} Qd2+ {[%emt 0:00:03]} 51. Kh3 {[%emt 0:00:01]} Qd1 {
[%emt 0:00:02]} 52. Qxg6 {[%emt 0:00:02]} Qh1# {[%emt 0:00:01]} 0-1